bitfinex/quotes_BTCUSD_20241010
["timestamp","ask_amount","ask_price","bid_price","bid_amount"]
[1728544494493,0.177436,61150.0,61149.0,0.48150823]
[1728544501876,0.177436,61150.0,61149.0,0.64234587]
[1728544502093,0.100936,61150.0,61149.0,0.64234587]
[1728544502310,0.100936,61150.0,61149.0,0.65764772]
[1728544508013,0.100936,61150.0,61149.0,0.70661204]
[1728544508241,0.100936,61150.0,61149.0,0.65764772]
[1728544511932,0.100936,61150.0,61149.0,0.64234587]
[1728544512181,0.100936,61150.0,61149.0,0.65765502]
[1728544513701,0.100936,61150.0,61149.0,0.7066182]
[1728544514156,0.001636,61158.0,61157.0,0.19145548]
[1728544514376,0.001636,61158.0,61157.0,0.59304452]
[1728544514588,0.001636,61158.0,61157.0,0.60537]
[1728544515261,0.001636,61158.0,61157.0,0.61137]
[1728544515684,0.001636,61158.0,61157.0,0.61837]
[1728544518098,0.001636,61158.0,61157.0,0.62037]
[1728544518521,0.001636,61158.0,61157.0,0.61837]
[1728544521281,0.001636,61158.0,61157.0,0.62037]
[1728544521706,0.001636,61158.0,61157.0,0.60506085]
[1728544521917,0.001636,61158.0,61157.0,0.62033607]
[1728544522564,0.001636,61158.0,61157.0,0.61833607]
[1728544522981,0.001636,61158.0,61157.0,0.64218145]
[1728544523190,0.001636,61158.0,61157.0,0.64418145]
[1728544523825,0.001636,61158.0,61157.0,0.64218145]
[1728544524539,0.001636,61158.0,61157.0,0.64872345]
[1728544524750,0.001636,61158.0,61157.0,0.64271956]
[1728544525376,0.001636,61158.0,61157.0,0.63571956]
[1728544525580,0.001636,61158.0,61157.0,0.64471956]
[1728544526000,0.001636,61158.0,61157.0,0.65271956]
[1728544528144,0.001636,61158.0,61157.0,0.65271705]
[1728544531392,0.001636,61158.0,61157.0,0.65271756]
[1728544531623,0.001636,61158.0,61157.0,0.66798713]
[1728544531831,0.001636,61158.0,61157.0,0.66798705]
[1728544533578,0.001636,61158.0,61157.0,0.65271756]
[1728544533787,0.001636,61158.0,61157.0,0.66798823]
[1728544534888,0.001636,61158.0,61157.0,0.66799078]
[1728544535102,0.001636,61158.0,61157.0,0.54254853]
[1728544535321,0.001636,61158.0,61157.0,0.65272145]
[1728544538433,0.001636,61158.0,61157.0,0.63744823]
[1728544538640,0.001636,61158.0,61157.0,0.65272574]
[1728544539882,0.095536,61158.0,61157.0,0.4918881]
[1728544540285,0.095536,61158.0,61157.0,0.36644585]
[1728544540503,0.173836,61158.0,61157.0,0.33690385]
[1728544540736,0.173836,61158.0,61157.0,0.32162634]
[1728544540950,0.18916445,61158.0,61157.0,0.32162634]
[1728544541591,0.173836,61158.0,61157.0,0.32162634]
[1728544543606,0.1891682,61158.0,61157.0,0.32162634]
[1728544545349,0.173836,61158.0,61157.0,0.32162634]
[1728544545578,0.1891659,61158.0,61157.0,0.32162634]
[1728544547644,0.173836,61158.0,61157.0,0.32162634]
[1728544553835,0.18915873,61158.0,61157.0,0.32162634]
[1728544554797,0.173836,61158.0,61157.0,0.32162634]
[1728544555688,0.189159,61158.0,61157.0,0.32162634]
[1728544556340,0.173836,61158.0,61157.0,0.32162634]
[1728544556585,0.18915923,61158.0,61157.0,0.32162634]
[1728544557628,0.173836,61158.0,61157.0,0.32162634]
[1728544558713,0.18916095,61158.0,61157.0,0.32162634]
[1728544559747,0.173836,61158.0,61157.0,0.32162634]
[1728544560713,0.18916164,61158.0,61157.0,0.32162634]
[1728544561691,0.173836,61158.0,61157.0,0.32162634]
[1728544567433,0.173836,61158.0,61157.0,0.32777984]
[1728544576192,0.173836,61158.0,61157.0,0.32283736]
[1728544576405,0.29927825,61158.0,61157.0,0.32283736]
[1728544576640,0.34832382,61158.0,61157.0,0.32283736]
[1728544577099,0.34832382,61158.0,61157.0,0.30583736]
[1728544577317,0.34832382,61158.0,61157.0,0.29299198]
[1728544577792,0.34832382,61158.0,61157.0,0.28799198]
[1728544578044,0.29927825,61158.0,61157.0,0.28799198]
[1728544578313,0.36387587,61158.0,61157.0,0.28799198]
[1728544578539,0.36387587,61158.0,61157.0,0.28199198]
[1728544578762,0.41292583,61158.0,61157.0,0.28199198]
[1728544578992,0.41292583,61158.0,61157.0,0.28499198]
[1728544579190,0.36387587,61158.0,61157.0,0.28499198]
[1728544579638,0.41292385,61158.0,61157.0,0.28199198]
[1728544580281,0.36387587,61158.0,61157.0,0.28199198]
[1728544580713,0.41392332,61158.0,61157.0,0.28199198]
[1728544581341,0.36487587,61158.0,61157.0,0.28199198]
[1728544581763,0.23943362,61158.0,61157.0,0.28199198]
[1728544585395,0.33567364,61158.0,61157.0,0.18199198]
[1728544585624,0.63938536,61158.0,61157.0,0.18199198]
[1728544585911,0.51675775,61158.0,61157.0,0.01847898]
[1728544586125,0.79244041,61158.0,61157.0,0.01847898]
[1728544586340,0.337514,61157.0,61154.0,0.001636]
[1728544586553,0.29944225,61155.0,61154.0,0.001636]
[1728544586875,0.641364,61155.0,61154.0,0.001636]
[1728544587106,0.80217061,61155.0,61154.0,0.001636]
[1728544588687,0.641364,61155.0,61154.0,0.001636]
[1728544589355,0.642364,61155.0,61154.0,0.001636]
[1728544590287,0.805882,61155.0,61154.0,0.001636]
[1728544590509,0.76483684,61155.0,61154.0,0.001636]
[1728544591182,0.92835484,61155.0,61154.0,0.001636]
[1728544591403,0.84775607,61155.0,61154.0,0.001636]
[1728544592741,0.96987137,61155.0,61154.0,0.001636]
[1728544592957,0.96987137,61155.0,61154.0,0.01642685]
[1728544593176,0.96987137,61155.0,61154.0,0.001636]
[1728544593395,0.96987137,61155.0,61154.0,0.01643151]
[1728544593609,0.96987137,61155.0,61154.0,0.001636]
[1728544593853,0.96987137,61155.0,61154.0,0.01643151]
[1728544594090,0.96987137,61155.0,61154.0,0.001636]
[1728544594581,0.96983427,61155.0,61154.0,0.001636]
[1728544594828,0.96983427,61155.0,61147.0,0.163538]
[1728544594829,0.29934225,61148.0,61147.0,0.163538]
[1728544595068,0.46017989,61148.0,61147.0,0.163538]
[1728544595307,0.46017989,61148.0,61147.0,0.17833351]
[1728544595308,0.53361841,61148.0,61147.0,0.17833351]
[1728544595547,0.46017989,61148.0,61147.0,0.163538]
[1728544595790,0.46017989,61148.0,61147.0,0.17835478]
[1728544596488,0.46017989,61148.0,61147.0,0.17935478]
[1728544596707,0.60086471,61148.0,61147.0,0.17935478]
[1728544596921,0.50911861,61148.0,61147.0,0.17935478]
[1728544598016,0.51011861,61148.0,61147.0,0.17935478]
[1728544598239,0.46117989,61148.0,61147.0,0.17935478]
[1728544598690,0.46117989,61148.0,61147.0,0.01581678]
[1728544598897,0.62471689,61148.0,61147.0,0.01581678]
[1728544599107,0.6219865,61148.0,61147.0,0.001]
[1728544599583,0.6219865,61148.0,61147.0,0.01594914]
[1728544599792,0.6219865,61148.0,61147.0,0.01595735]
[1728544600280,0.49654425,61148.0,61147.0,0.17949735]
[1728544600503,0.33573764,61148.0,61147.0,0.17949735]
[1728544604854,0.1749,61148.0,61147.0,0.17949735]
[1728544605488,0.1749,61148.0,61147.0,0.18113335]
[1728544616205,0.30034225,61148.0,61147.0,0.18113335]
[1728544616418,0.3426015,61148.0,61147.0,0.18113335]
[1728544616854,0.50343914,61148.0,61147.0,0.01759335]
[1728544617103,0.55236933,61148.0,61147.0,0.01759335]
[1728544617315,0.57683443,61148.0,61147.0,0.01759335]
[1728544617725,0.57683443,61148.0,61147.0,0.18113335]
[1728544619671,0.50343914,61148.0,61147.0,0.18113335]
[1728544620606,0.57683443,61148.0,61147.0,0.18113335]
[1728544620852,0.57689183,61148.0,61147.0,0.18113335]
[1728544621563,0.50343914,61148.0,61147.0,0.18113335]
[1728544621777,0.50343914,61148.0,61147.0,0.01759335]
[1728544621990,0.50343914,61148.0,61147.0,0.18113335]
[1728544622654,0.78220382,61148.0,61147.0,0.18113335]
[1728544622853,0.78223918,61148.0,61147.0,0.18113335]
[1728544623312,0.57691754,61148.0,61147.0,0.18113335]
[1728544623775,0.50343914,61148.0,61147.0,0.18113335]
[1728544624632,0.57693607,61148.0,61147.0,0.18113335]
[1728544626427,0.50343914,61148.0,61147.0,0.18113335]
[1728544627536,0.78240981,61148.0,61147.0,0.18113335]
[1728544628656,0.6844139,61148.0,61147.0,0.18113335]
[1728544628886,0.68445925,61148.0,61147.0,0.18113335]
[1728544629573,0.80706125,61148.0,61147.0,0.18113335]
[1728544629808,0.80706125,61148.0,61147.0,0.01759335]
[1728544630050,0.84800005,61148.0,61147.0,0.01759335]
[1728544630525,0.99511789,61148.0,61147.0,0.002636]
[1728544631505,0.84800005,61148.0,61147.0,0.002636]
[1728544631751,0.8057408,61148.0,61147.0,0.002636]
[1728544632000,0.163542,61146.0,61145.0,0.000818]
[1728544632250,0.73164719,61146.0,61145.0,0.000818]
[1728544633497,1.06955476,61146.0,61145.0,0.000818]
[1728544633708,1.14898063,61146.0,61145.0,0.001818]
[1728544633914,0.8934538,61146.0,61145.0,0.001818]
[1728544634154,0.8955951,61146.0,61145.0,0.001818]
[1728544634654,0.9055951,61146.0,61145.0,0.002818]
[1728544634894,0.9055951,61146.0,61145.0,0.001818]
[1728544634895,0.8955951,61146.0,61145.0,0.001818]
[1728544635130,0.9065951,61146.0,61145.0,0.001818]
[1728544635365,0.9085951,61146.0,61145.0,0.001818]
[1728544635606,0.9105951,61146.0,61145.0,0.001818]
[1728544635822,0.9205951,61146.0,61145.0,0.001818]
[1728544636246,0.9245951,61146.0,61145.0,0.0007637]
[1728544636728,1.21353734,61146.0,61145.0,0.0007637]
[1728544636966,1.30166865,61146.0,61145.0,0.0007637]
[1728544637210,1.25052501,61146.0,61145.0,0.01592539]
[1728544637433,0.99689371,61146.0,61145.0,0.01592539]
[1728544637640,0.99689371,61146.0,61145.0,0.0007637]
[1728544639309,0.37200285,61146.0,61145.0,0.1643087]
[1728544639813,0.37200285,61146.0,61145.0,0.17943878]
[1728544640632,0.49454655,61146.0,61145.0,0.17943878]
[1728544640868,0.46854655,61146.0,61145.0,0.17943878]
[1728544641079,0.46454655,61146.0,61145.0,0.17967508]
[1728544641314,0.45503538,61146.0,61145.0,0.18067508]
[1728544641553,0.35700285,61146.0,61145.0,0.18067508]
[1728544641793,0.35700285,61146.0,61145.0,0.17967508]
[1728544641794,0.35400285,61146.0,61145.0,0.17967508]
[1728544642021,0.34200285,61146.0,61145.0,0.17867508]
[1728544642256,0.34500285,61146.0,61145.0,0.17967508]
[1728544642454,0.4560326,61146.0,61145.0,0.18067508]
[1728544642889,0.4560326,61146.0,61145.0,0.18231108]
[1728544643095,0.35800285,61146.0,61145.0,0.18231108]
[1728544643299,0.45684972,61146.0,61145.0,0.18231108]
[1728544644568,0.19798321,61146.0,61145.0,0.18231108]
[1728544644806,0.016818,61146.0,61145.0,0.18231108]
[1728544645719,0.09033843,61146.0,61145.0,0.18231108]
[1728544648937,0.016818,61146.0,61145.0,0.18231108]
[1728544649425,0.06583001,61146.0,61145.0,0.18231108]
[1728544654324,0.06583001,61146.0,61145.0,0.01876608]
[1728544654544,0.06583001,61146.0,61145.0,0.18231108]
[1728544655421,0.08114229,61146.0,61145.0,0.18231108]
[1728544657401,0.06583001,61146.0,61145.0,0.18231108]
[1728544657589,0.08114218,61146.0,61145.0,0.18231108]
[1728544660712,0.06583001,61146.0,61145.0,0.18231108]
[1728544660960,0.08114165,61146.0,61145.0,0.18231108]
[1728544662445,0.08114314,61146.0,61145.0,0.18231108]
[1728544664533,0.0658315,61146.0,61145.0,0.18231108]
[1728544664780,0.08114647,61146.0,61145.0,0.18231108]
[1728544665507,0.08114647,61146.0,61145.0,0.01876608]
[1728544665508,0.7052195,61146.0,61145.0,0.01876608]
[1728544665750,0.88614745,61146.0,61145.0,0.01876608]
[1728544665989,0.91065769,61146.0,61145.0,0.01876608]
[1728544666222,0.78812044,61146.0,61145.0,0.003636]
[1728544667140,0.7881377,61146.0,61145.0,0.003636]
[1728544671220,0.78815659,61146.0,61145.0,0.003636]
[1728544671857,0.78814743,61146.0,61145.0,0.003636]
[1728544673270,0.78814743,61146.0,61145.0,0.00347604]
[1728544674641,0.77281357,61146.0,61145.0,0.00347604]
[1728544674861,0.77281357,61146.0,61144.0,0.00035088]
[1728544674862,0.163545,61145.0,61144.0,0.00035088]
[1728544675075,0.77575214,61145.0,61144.0,0.00035088]
[1728544676161,0.78775214,61145.0,61144.0,0.00135088]
[1728544676590,0.79074119,61145.0,61144.0,0.00235088]
[1728544678409,0.92262386,61145.0,61144.0,0.00235088]
[1728544678900,1.17592761,61145.0,61144.0,0.00235088]
[1728544679325,0.74169876,61145.0,61144.0,0.00235088]
[1728544679541,0.92263447,61145.0,61144.0,0.00235088]
[1728544679757,1.17594446,61145.0,61144.0,0.00235088]
[1728544680458,1.46184185,61145.0,61144.0,0.00235088]
[1728544680684,1.30138671,61145.0,61144.0,0.00235088]
[1728544680899,1.30338671,61145.0,61144.0,0.00235088]
[1728544681119,1.30138548,61145.0,61144.0,0.00235088]
[1728544681342,1.30038548,61145.0,61144.0,0.00135088]
[1728544681557,1.28638548,61145.0,61144.0,0.00035088]
[1728544681773,0.329567,61137.0,61136.0,0.000818]
[1728544682013,0.94319773,61137.0,61136.0,0.000818]
[1728544682250,0.94319773,61137.0,61136.0,0.01349914]
[1728544682480,0.94319773,61137.0,61136.0,0.000818]
[1728544684077,0.81775548,61137.0,61136.0,0.000818]
[1728544684323,0.94319773,61137.0,61136.0,0.000818]
[1728544684564,0.95717396,61137.0,61136.0,0.000818]
[1728544684795,0.94185193,61137.0,61136.0,0.001818]
[1728544685027,0.95716293,61137.0,61136.0,0.001818]
[1728544685239,0.97116293,61137.0,61136.0,0.001818]
[1728544685455,0.97926982,61137.0,61136.0,0.001818]
[1728544689137,0.97917882,61137.0,61136.0,0.001818]
[1728544691099,0.96386782,61137.0,61136.0,0.001818]
[1728544691348,0.97917733,61137.0,61136.0,0.001818]
[1728544694240,0.97910727,61137.0,61136.0,0.001818]
[1728544694458,0.97911642,61137.0,61136.0,0.001818]
[1728544694917,0.97911644,61137.0,61136.0,0.001818]
[1728544698947,0.97911187,61137.0,61136.0,0.001818]
[1728544702153,0.72454487,61137.0,61135.0,0.00058234]
[1728544702374,0.77637824,61136.0,61135.0,0.00058234]
[1728544702602,0.8274661,61136.0,61135.0,0.00058234]
[1728544703690,0.90621525,61136.0,61135.0,0.00158234]
[1728544704127,0.92021525,61136.0,61135.0,0.00058234]
[1728544704393,0.93423041,61136.0,61135.0,0.00158234]
[1728544704630,0.93423018,61136.0,61135.0,0.00158234]
[1728544707608,0.93423916,61136.0,61135.0,0.00158234]
[1728544708241,1.08117135,61136.0,61135.0,0.00158234]
[1728544710309,0.93423916,61136.0,61135.0,0.00158234]
[1728544710548,1.18757461,61136.0,61135.0,0.00158234]
[1728544714355,1.18758017,61136.0,61135.0,0.00158234]
[1728544714823,1.18757964,61136.0,61135.0,0.00158234]
[1728544715759,0.45733325,61128.0,61127.0,0.000818]
[1728544715974,0.45733325,61128.0,61127.0,0.01358604]
[1728544715975,1.15642264,61128.0,61127.0,0.01358604]
[1728544716194,1.15642086,61128.0,61127.0,0.000818]
[1728544717049,1.17042086,61128.0,61127.0,0.000818]
[1728544717260,1.03728448,61128.0,61127.0,0.001818]
[1728544717474,0.163604,61124.0,61120.0,0.2483382]
[1728544717692,0.22352876,61121.0,61120.0,0.2483382]
[1728544717909,0.39971224,61121.0,61119.0,0.163614]
[1728544718121,0.17618348,61120.0,61119.0,0.163614]
[1728544718340,0.35722974,61120.0,61119.0,0.163614]
[1728544718546,0.1761778,61120.0,61119.0,0.163614]
[1728544718755,0.30462496,61120.0,61119.0,0.163614]
[1728544720492,0.48567848,61120.0,61119.0,0.163614]
[1728544720616,0.35723132,61120.0,61119.0,0.163614]
[1728544721251,0.45531782,61120.0,61119.0,0.163614]
[1728544721477,0.35723132,61120.0,61119.0,0.163614]
[1728544722302,0.45531782,61120.0,61119.0,0.163614]
[1728544722507,0.53768514,61120.0,61119.0,0.163614]
[1728544722713,0.53870203,61120.0,61119.0,0.163614]
[1728544725379,0.53770203,61120.0,61119.0,0.163614]
[1728544725810,0.53970203,61120.0,61119.0,0.163614]
[1728544726145,0.06839969,61120.0,61119.0,0.343214]
[1728544726357,0.01934016,61120.0,61119.0,0.343214]
[1728544727456,0.01934016,61120.0,61119.0,0.344032]
[1728544728355,0.004,61120.0,61119.0,0.344032]
[1728544728574,0.01933239,61120.0,61119.0,0.344032]
[1728544729945,0.01933239,61120.0,61119.0,0.3568693]
[1728544735291,0.0193369,61120.0,61119.0,0.3568693]
[1728544736399,0.06839807,61120.0,61119.0,0.3568693]
[1728544738761,0.06839807,61120.0,61119.0,0.1772693]
[1728544740070,0.12920517,61120.0,61119.0,0.1772693]
[1728544740264,0.09292866,61120.0,61119.0,0.1772693]
[1728544740468,0.0193369,61120.0,61119.0,0.1772693]
[1728544741402,0.004,61120.0,61119.0,0.1772693]
[1728544741612,0.01934046,61120.0,61119.0,0.1772693]
[1728544742425,0.20050555,61120.0,61119.0,0.1772693]
[1728544743004,0.25518408,61120.0,61119.0,0.1772693]
[1728544743228,0.20050555,61120.0,61119.0,0.1772693]
[1728544744430,0.29865553,61120.0,61119.0,0.1772693]
[1728544744857,0.29865763,61120.0,61119.0,0.1772693]
[1728544745275,0.29868348,61120.0,61119.0,0.1772693]
[1728544746605,0.29868372,61120.0,61119.0,0.1772693]
[1728544747017,0.36972651,61120.0,61119.0,0.1772693]
[1728544747214,0.29868372,61120.0,61119.0,0.1772693]
[1728544748783,0.48406194,61120.0,61119.0,0.0136553]
[1728544749251,0.36139867,61120.0,61119.0,0.0136553]
[1728544749486,0.52501067,61120.0,61119.0,0.0136553]
[1728544749728,0.78431728,61120.0,61119.0,0.000818]
[1728544751504,0.78431728,61120.0,61119.0,0.01372717]
[1728544752141,0.78431701,61120.0,61119.0,0.01372717]
[1728544752878,0.62070501,61120.0,61119.0,0.01372717]
[1728544753727,0.61870501,61120.0,61119.0,0.01372717]
[1728544754578,0.43848682,61120.0,61119.0,0.01372717]
[1728544754785,0.62266522,61120.0,61119.0,0.01372717]
[1728544756801,0.78627722,61120.0,61119.0,0.01372717]
[1728544757014,1.00732062,61120.0,61119.0,0.01372717]
[1728544757230,0.86507722,61120.0,61119.0,0.000818]
[1728544757656,0.87507722,61120.0,61119.0,0.000818]
[1728544757862,0.86507722,61120.0,61119.0,0.000818]
[1728544758087,0.87907722,61120.0,61119.0,0.000818]
[1728544758322,0.87107722,61120.0,61119.0,0.000818]
[1728544758566,0.88007722,61120.0,61119.0,0.000818]
[1728544758782,0.331815,61119.0,61118.0,0.0007231]
[1728544759037,0.90108721,61119.0,61118.0,0.0007231]
[1728544759253,0.90107628,61119.0,61118.0,0.0007231]
[1728544759469,1.10360209,61119.0,61118.0,0.0007231]
[1728544759695,1.15469789,61119.0,61118.0,0.0007231]
[1728544760582,0.91506509,61119.0,61118.0,0.0007231]
[1728544760781,1.16869789,61119.0,61118.0,0.0007231]
[1728544761006,1.18269789,61119.0,61118.0,0.0007231]
[1728544761428,0.90106509,61119.0,61118.0,0.0007231]
[1728544761652,1.16869789,61119.0,61118.0,0.0007231]
[1728544761864,1.18269789,61119.0,61118.0,0.0007231]
[1728544762716,1.18268593,61119.0,61118.0,0.0007231]
[1728544763162,1.15468593,61119.0,61118.0,0.0007231]
[1728544763388,1.18268593,61119.0,61118.0,0.0007231]
[1728544763636,1.16868593,61119.0,61118.0,0.0007231]
[1728544763849,1.15468593,61119.0,61118.0,0.0007231]
[1728544764045,1.16821319,61119.0,61118.0,0.0007231]
[1728544764252,1.18221319,61119.0,61118.0,0.0007231]
[1728544764682,1.16821319,61119.0,61118.0,0.0007231]
[1728544764900,1.15421319,61119.0,61118.0,0.0007231]
[1728544765100,1.18221319,61119.0,61118.0,0.0007231]
[1728544765767,1.13111739,61119.0,61118.0,0.0007231]
[1728544766186,1.11579771,61119.0,61118.0,0.0007231]
[1728544766398,1.11711348,61119.0,61118.0,0.0007231]
[1728544767244,1.13111348,61119.0,61118.0,0.0007231]
[1728544767666,1.11711348,61119.0,61118.0,0.0007231]
[1728544768464,1.13111348,61119.0,61118.0,0.0007231]
[1728544769294,1.02472718,61119.0,61118.0,0.0007231]
[1728544769501,1.27809128,61119.0,61118.0,0.0007231]
[1728544770311,1.02472718,61119.0,61118.0,0.0007231]
[1728544772406,1.0757704,61119.0,61118.0,0.0007231]
[1728544773259,1.06045463,61119.0,61118.0,0.0007231]
[1728544773466,1.07577111,61119.0,61118.0,0.0007231]
[1728544773853,0.12544225,61112.0,61111.0,0.03559906]
[1728544774116,0.64827226,61112.0,61111.0,0.03559906]
[1728544774317,0.64827226,61112.0,61111.0,0.04879907]
[1728544774548,0.64827454,61112.0,61111.0,0.03559906]
[1728544774994,0.64827454,61112.0,61111.0,0.04879846]
[1728544776144,0.59453303,61112.0,61111.0,0.04879846]
[1728544776337,0.60853303,61112.0,61111.0,0.04879846]
[1728544776760,0.60853691,61112.0,61111.0,0.04879846]
[1728544777187,0.60853692,61112.0,61111.0,0.04879846]
[1728544779028,0.60816392,61112.0,61111.0,0.04879846]
[1728544779881,0.76897053,61112.0,61111.0,0.04879846]
[1728544780097,0.76897821,61112.0,61111.0,0.04879846]
[1728544781142,0.67101819,61112.0,61111.0,0.04879846]
[1728544782902,0.54594894,61112.0,61111.0,0.04879846]
[1728544783138,0.67139119,61112.0,61111.0,0.21243446]
[1728544783331,0.67139119,61112.0,61111.0,0.04879846]
[1728544784428,0.79384121,61112.0,61111.0,0.04879846]
[1728544786003,0.6330346,61112.0,61111.0,0.04879846]
[1728544787468,0.61770427,61112.0,61111.0,0.04879846]
[1728544787682,0.6330538,61112.0,61111.0,0.04879846]
[1728544789274,0.51060378,61112.0,61111.0,0.04879846]
[1728544792677,0.51067273,61112.0,61111.0,0.04879846]
[1728544792898,0.67147934,61112.0,61111.0,0.04879846]
[1728544793307,0.72266198,61112.0,61111.0,0.04879846]
[1728544794027,0.72228898,61112.0,61111.0,0.04879846]
[1728544794229,0.56148237,61112.0,61111.0,0.04879846]
[1728544796856,0.43604012,61112.0,61111.0,0.21243446]
[1728544797157,0.56148237,61112.0,61111.0,0.21243446]
[1728544797414,0.56159298,61112.0,61111.0,0.21243446]
[1728544797620,0.69843163,61112.0,61111.0,0.21243446]
[1728544798787,0.69843163,61112.0,61111.0,0.04879846]
[1728544799295,0.84565513,61112.0,61111.0,0.04879846]
[1728544800490,0.84729113,61112.0,61111.0,0.04879846]
[1728544800996,0.84740707,61112.0,61111.0,0.04879846]
[1728544802192,0.84740707,61112.0,61111.0,0.21243446]
[1728544802445,0.70013159,61112.0,61111.0,0.21243446]
[1728544803212,0.70013159,61112.0,61111.0,0.04879846]
[1728544803694,0.56329294,61112.0,61111.0,0.04879846]
[1728544804800,0.56329294,61112.0,61111.0,0.21243446]
[1728544805422,0.38207506,61112.0,61111.0,0.21243446]
[1728544805667,0.56347064,61112.0,61111.0,0.21243446]
[1728544806086,0.43802839,61112.0,61111.0,0.21243446]
[1728544806518,0.38684575,61112.0,61111.0,0.21243446]
[1728544807147,0.46206827,61112.0,61111.0,0.21243446]
[1728544807588,0.60949022,61112.0,61111.0,0.21243446]
[1728544807801,0.46206827,61112.0,61111.0,0.21243446]
[1728544809495,0.28067269,61112.0,61111.0,0.21243446]
[1728544809996,0.20545017,61112.0,61111.0,0.21243446]
[1728544810489,0.38683511,61112.0,61111.0,0.21243446]
[1728544811111,0.38683511,61112.0,61111.0,0.04879846]
[1728544811606,0.38683511,61112.0,61111.0,0.21243446]
[1728544812327,0.43801587,61112.0,61111.0,0.21243446]
[1728544812530,0.49302581,61112.0,61111.0,0.21243446]
[1728544814424,0.25663093,61112.0,61111.0,0.21243446]
[1728544817096,0.25663431,61112.0,61111.0,0.21243446]
[1728544817280,0.2412814,61112.0,61111.0,0.21243446]
[1728544817452,0.25663435,61112.0,61111.0,0.21243446]
[1728544819813,0.04498895,61112.0,61111.0,0.21243446]
[1728544820759,0.04461595,61112.0,61111.0,0.21243446]
[1728544823385,0.2259727,61112.0,61111.0,0.21243446]
[1728544826442,0.22595426,61112.0,61111.0,0.21243446]
[1728544827540,0.22595208,61112.0,61111.0,0.21243446]
[1728544827784,0.21060131,61112.0,61111.0,0.21243446]
[1728544828006,0.22595208,61112.0,61111.0,0.21243446]
[1728544829250,0.22595208,61112.0,61111.0,0.23606428]
[1728544829456,0.22595208,61112.0,61111.0,0.21243446]
[1728544830485,0.22595208,61112.0,61111.0,0.39003446]
[1728544830702,0.04461377,61112.0,61111.0,0.45756772]
[1728544830917,0.11829603,61112.0,61111.0,0.55756772]
[1728544831126,0.09373699,61112.0,61111.0,0.55756772]
[1728544831392,0.04461474,61112.0,61111.0,0.55756772]
[1728544832037,0.04461474,61112.0,61111.0,0.56888054]
[1728544832874,0.04461474,61112.0,61111.0,0.57088054]
[1728544834160,0.029263,61112.0,61111.0,0.55352721]
[1728544834398,0.015636,61112.0,61111.0,0.56885624]
[1728544834614,0.001636,61112.0,61111.0,0.56885624]
[1728544834830,0.001636,61112.0,61111.0,0.67896946]
[1728544835093,0.002636,61112.0,61111.0,0.69429244]
[1728544835512,0.001636,61112.0,61111.0,0.69429244]
[1728544835720,0.002636,61112.0,61111.0,0.69429244]
[1728544836377,0.003636,61112.0,61111.0,0.69629244]
[1728544837917,0.003636,61112.0,61111.0,0.69628584]
[1728544840632,0.003636,61112.0,61111.0,0.68096946]
[1728544841268,0.003636,61112.0,61111.0,0.69628054]
[1728544842525,0.003636,61112.0,61111.0,0.69428054]
[1728544842974,0.003636,61112.0,61111.0,0.69628054]
[1728544844018,0.003636,61112.0,61111.0,0.68096946]
[1728544844236,0.003636,61112.0,61111.0,0.69627783]
[1728544847607,0.003636,61112.0,61111.0,0.68096946]
[1728544850037,0.003636,61112.0,61111.0,0.55352721]
[1728544850208,0.003636,61112.0,61111.0,0.67896946]
[1728544860833,0.003636,61112.0,61111.0,0.68096946]
[1728544864157,0.003636,61112.0,61111.0,0.58406946]
[1728544864366,0.003636,61112.0,61111.0,0.50336946]
[1728544870336,0.003636,61112.0,61111.0,0.50136946]
[1728544872253,0.003636,61112.0,61111.0,0.50336946]
[1728544877437,0.003636,61112.0,61111.0,0.50136946]
[1728544878155,0.003636,61112.0,61111.0,0.50336946]
[1728544882660,0.003636,61112.0,61111.0,0.50136946]
[1728544884725,0.003636,61112.0,61111.0,0.37592721]
[1728544884883,0.003636,61112.0,61111.0,0.50136946]
[1728544885083,0.003636,61112.0,61111.0,0.37592721]
[1728544885295,0.003636,61112.0,61111.0,0.50136946]
[1728544885914,0.01899385,61112.0,61111.0,0.50136946]
[1728544886319,0.01899385,61112.0,61111.0,0.50336946]
[1728544886496,0.01899385,61112.0,61111.0,0.50136946]
[1728544886695,0.01899385,61112.0,61111.0,0.50336946]
[1728544888126,0.003636,61112.0,61111.0,0.50336946]
[1728544888376,0.01899389,61112.0,61111.0,0.50336946]
[1728544888826,0.01899389,61112.0,61111.0,0.50136946]
[1728544893473,0.01899389,61112.0,61111.0,0.50336946]
[1728544894921,0.003636,61112.0,61111.0,0.50336946]
[1728544895134,0.01899344,61112.0,61111.0,0.50336946]
[1728544895866,0.003636,61112.0,61111.0,0.50336946]
[1728544904692,0.003636,61112.0,61111.0,0.50136946]
[1728544905297,0.003636,61112.0,61111.0,0.50336946]
[1728544907121,0.01899305,61112.0,61111.0,0.50336946]
[1728544908170,0.01899305,61112.0,61111.0,0.50136946]
[1728544908409,0.01899305,61112.0,61111.0,0.51872264]
[1728544908666,0.01899305,61112.0,61111.0,0.39328039]
[1728544908912,0.01899305,61112.0,61111.0,0.51672264]
[1728544910564,0.01899305,61112.0,61111.0,0.51672273]
[1728544911559,0.003636,61112.0,61111.0,0.51872273]
[1728544912611,0.08116754,61118.0,61117.0,0.16362]
[1728544912813,0.08116754,61118.0,61117.0,0.432358]
[1728544912962,0.08116754,61118.0,61117.0,0.45661547]
[1728544912963,0.09652187,61118.0,61117.0,0.45661547]
[1728544913589,0.08116754,61118.0,61117.0,0.45661547]
[1728544913799,0.09652043,61118.0,61117.0,0.45661547]
[1728544914938,0.09652043,61118.0,61117.0,0.45861547]
[1728544917219,0.09652043,61118.0,61117.0,0.45860581]
[1728544917841,0.09815643,61118.0,61117.0,0.45860581]
[1728544918254,0.09815643,61118.0,61117.0,0.33316356]
[1728544918475,0.09815643,61118.0,61117.0,0.45860581]
[1728544920398,0.08280354,61118.0,61117.0,0.45860581]
[1728544920684,0.09815228,61118.0,61117.0,0.4432622]
[1728544920885,0.09815228,61118.0,61117.0,0.45860378]
[1728544922415,0.1472722,61118.0,61117.0,0.45860378]
[1728544922648,0.1472722,61118.0,61117.0,0.33346453]
[1728544923453,0.25473216,61118.0,61117.0,0.33346453]
[1728544923818,0.18105228,61118.0,61117.0,0.32852205]
[1728544924027,0.46062444,61118.0,61117.0,0.32852205]
[1728544924245,0.18105228,61118.0,61117.0,0.33346453]
[1728544924463,0.27929797,61118.0,61117.0,0.32852205]
[1728544924664,0.27929797,61118.0,61117.0,0.33346453]
[1728544924665,0.46063036,61118.0,61117.0,0.33346453]
[1728544926368,0.34703593,61118.0,61117.0,0.31812295]
[1728544926573,0.36238482,61118.0,61117.0,0.32852131]
[1728544926884,0.36238482,61118.0,61117.0,0.33346379]
[1728544929127,0.36235834,61118.0,61117.0,0.33346379]
[1728544929579,0.18105243,61118.0,61117.0,0.33346379]